[Event "Early-Titled-Tuesday-Blitz-March-05-2024"]
[Site "Chess.com"]
[Date "2024.03.05"]
[Round "7"]
[White "KorolDimitriy75"]
[Black "xasid81"]
[Result "1/2-1/2"]
[WhiteElo "2452"]
[BlackElo "2568"]
[TimeControl "180+1"]
[EndTime "9:19:13 PST"]
[Termination "Game drawn by repetition"]

1. d4 {[%clk 0:03:00.9]} 1... a6 {[%clk 0:03:00.3]} 2. c4 {[%clk 0:03:00.7]}
2... b5 {[%clk 0:03:00.3]} 3. e3 {[%clk 0:02:59.9]} 3... Bb7 {[%clk 0:03:00.1]}
4. Nf3 {[%clk 0:02:59]} 4... bxc4 {[%clk 0:02:57.7]} 5. Bxc4 {[%clk 0:02:59.9]}
5... e6 {[%clk 0:02:58.3]} 6. Nc3 {[%clk 0:02:58.7]} 6... Nf6 {[%clk 0:02:58.7]}
7. O-O {[%clk 0:02:52.5]} 7... Be7 {[%clk 0:02:58.5]} 8. Qe2 {[%clk 0:02:49.1]}
8... O-O {[%clk 0:02:57.8]} 9. e4 {[%clk 0:02:38.1]} 9... d5 {[%clk 0:02:57.4]}
10. Bd3 {[%clk 0:02:06.4]} 10... dxe4 {[%clk 0:02:56.5]} 11. Nxe4 {[%clk
0:02:07.3]} 11... Nbd7 {[%clk 0:02:56.9]} 12. Bg5 {[%clk 0:01:39.5]} 12... Nxe4
{[%clk 0:02:49.2]} 13. Bxe7 {[%clk 0:01:39.5]} 13... Qxe7 {[%clk 0:02:50.1]} 14.
Bxe4 {[%clk 0:01:39.3]} 14... Bxe4 {[%clk 0:02:50.6]} 15. Qxe4 {[%clk
0:01:40.2]} 15... c5 {[%clk 0:02:49.2]} 16. Rfd1 {[%clk 0:01:14.8]} 16... Nf6
{[%clk 0:02:48.4]} 17. Qe2 {[%clk 0:01:02.5]} 17... cxd4 {[%clk 0:02:39.2]} 18.
Rxd4 {[%clk 0:01:00.5]} 18... a5 {[%clk 0:02:37.5]} 19. Rad1 {[%clk 0:00:52.9]}
19... h6 {[%clk 0:02:33.8]} 20. h3 {[%clk 0:00:52.7]} 20... Rfd8 {[%clk
0:02:32.7]} 21. Rxd8+ {[%clk 0:00:42.7]} 21... Rxd8 {[%clk 0:02:33.6]} 22. Rxd8+
{[%clk 0:00:42.6]} 22... Qxd8 {[%clk 0:02:34.5]} 23. Qb5 {[%clk 0:00:42.5]}
23... Ne4 {[%clk 0:02:27.5]} 24. a4 {[%clk 0:00:16.5]} 24... g5 {[%clk
0:02:16.3]} 25. b4 {[%clk 0:00:12.9]} 25... axb4 {[%clk 0:02:07.9]} 26. Qxb4
{[%clk 0:00:12.5]} 26... Qd1+ {[%clk 0:02:07.4]} 27. Kh2 {[%clk 0:00:08.5]}
27... Nxf2 {[%clk 0:02:05.1]} 28. a5 {[%clk 0:00:07.9]} 28... Qh1+ {[%clk
0:01:37.4]} 29. Kg3 {[%clk 0:00:07.6]} 29... Qf1 {[%clk 0:01:38]} 30. Qb8+
{[%clk 0:00:05.6]} 30... Kh7 {[%clk 0:01:36.1]} 31. Qe5 {[%clk 0:00:05.4]} 31...
Nd3 {[%clk 0:01:21.3]} 32. Qe4+ {[%clk 0:00:04.8]} 32... f5 {[%clk 0:01:06.5]}
33. Qxe6 {[%clk 0:00:04.7]} 33... f4+ {[%clk 0:00:48]} 34. Kh2 {[%clk
0:00:04.7]} 34... Nf2 {[%clk 0:00:36.7]} 35. Qf7+ {[%clk 0:00:04.8]} 35... Kh8
{[%clk 0:00:37.1]} 36. Qf8+ {[%clk 0:00:05.3]} 36... Kh7 {[%clk 0:00:37.5]} 37.
Qf7+ {[%clk 0:00:05.8]} 37... Kh8 {[%clk 0:00:38]} 38. Qf8+ {[%clk 0:00:06.3]}
38... Kh7 {[%clk 0:00:38.4]} 39. Qf7+ {[%clk 0:00:06.7]} 1/2-1/2

[Event "Early-Titled-Tuesday-Blitz-March-05-2024"]
[Site "Chess.com"]
[Date "2024.03.05"]
[Round "7"]
[White "viktorgen2021"]
[Black "Capiberibe"]
[Result "1-0"]
[WhiteElo "2489"]
[BlackElo "2018"]
[TimeControl "180+1"]
[EndTime "9:19:14 PST"]
[Termination "viktorgen2021 won by checkmate"]

1. d4 {[%clk 0:03:00.9]} 1... Nf6 {[%clk 0:02:56.9]} 2. Nf3 {[%clk 0:03:01.1]}
2... e6 {[%clk 0:02:55.9]} 3. g3 {[%clk 0:03:00.6]} 3... b6 {[%clk 0:02:51.8]}
4. Bg2 {[%clk 0:03:01.1]} 4... Bb7 {[%clk 0:02:52.2]} 5. O-O {[%clk 0:03:01.8]}
5... Be7 {[%clk 0:02:52.5]} 6. c4 {[%clk 0:03:02.3]} 6... O-O {[%clk 0:02:52.4]}
7. Nc3 {[%clk 0:03:01.9]} 7... Ne4 {[%clk 0:02:52.2]} 8. Qc2 {[%clk 0:02:57.3]}
8... Nxc3 {[%clk 0:02:51]} 9. Qxc3 {[%clk 0:02:58.2]} 9... Be4 {[%clk
0:02:49.6]} 10. Rd1 {[%clk 0:02:57.3]} 10... d6 {[%clk 0:02:47]} 11. d5 {[%clk
0:02:54.1]} 11... e5 {[%clk 0:02:45.4]} 12. Ne1 {[%clk 0:02:46.6]} 12... Bxg2
{[%clk 0:02:44.1]} 13. Nxg2 {[%clk 0:02:47.5]} 13... a5 {[%clk 0:02:43.8]} 14.
e4 {[%clk 0:02:45.2]} 14... Nd7 {[%clk 0:02:43.5]} 15. Ne3 {[%clk 0:02:43]}
15... Bg5 {[%clk 0:02:35.6]} 16. Nf5 {[%clk 0:02:39.7]} 16... Bxc1 {[%clk
0:02:29.8]} 17. Qxc1 {[%clk 0:02:37.9]} 17... g6 {[%clk 0:02:26.4]} 18. Nh4
{[%clk 0:02:29.3]} 18... Qf6 {[%clk 0:02:19.2]} 19. Qe3 {[%clk 0:02:27.2]} 19...
a4 {[%clk 0:02:05.2]} 20. Ng2 {[%clk 0:02:18.6]} 20... Nc5 {[%clk 0:02:01.3]}
21. Rd2 {[%clk 0:02:16.5]} 21... Qg7 {[%clk 0:01:49.5]} 22. Re1 {[%clk
0:02:14.4]} 22... f5 {[%clk 0:01:48.6]} 23. exf5 {[%clk 0:02:06.9]} 23... Rxf5
{[%clk 0:01:47.9]} 24. f4 {[%clk 0:02:06.8]} 24... exf4 {[%clk 0:01:32.9]} 25.
Nxf4 {[%clk 0:02:05]} 25... Raf8 {[%clk 0:01:32.5]} 26. Rf2 {[%clk 0:02:00.5]}
26... Qh6 {[%clk 0:01:14.1]} 27. Ref1 {[%clk 0:01:58]} 27... Qg5 {[%clk
0:01:03.5]} 28. Kh1 {[%clk 0:01:54.6]} 28... Qh6 {[%clk 0:01:00]} 29. Qe7 {[%clk
0:01:50]} 29... Qg7 {[%clk 0:00:56]} 30. Qe2 {[%clk 0:01:46.3]} 30... g5 {[%clk
0:00:51.5]} 31. Nh5 {[%clk 0:01:40.2]} 31... Rxf2 {[%clk 0:00:50.6]} 32. Rxf2
{[%clk 0:01:26.3]} 32... Rxf2 {[%clk 0:00:46.9]} 33. Qxf2 {[%clk 0:01:26.3]}
33... Qf7 {[%clk 0:00:46.9]} 34. Qe2 {[%clk 0:01:24.5]} 34... Kf8 {[%clk
0:00:33.4]} 35. Kg2 {[%clk 0:01:23]} 35... Qe7 {[%clk 0:00:32.8]} 36. Qf3+
{[%clk 0:01:15.7]} 36... Qf7 {[%clk 0:00:32.6]} 37. Qe2 {[%clk 0:01:14.3]} 37...
Qe7 {[%clk 0:00:32.6]} 38. Qd2 {[%clk 0:01:10.1]} 38... Qe4+ {[%clk 0:00:31.8]}
39. Kh3 {[%clk 0:01:10.2]} 39... Qf5+ {[%clk 0:00:28.3]} 40. Kg2 {[%clk
0:01:08.3]} 40... Qe4+ {[%clk 0:00:28.2]} 41. Kg1 {[%clk 0:01:06.9]} 41... h6
{[%clk 0:00:26.3]} 42. Qf2+ {[%clk 0:01:04.6]} 42... Ke7 {[%clk 0:00:22.3]} 43.
Nf6 {[%clk 0:00:47.8]} 43... Qb1+ {[%clk 0:00:19.9]} 44. Kg2 {[%clk 0:00:47.5]}
44... Nd3 {[%clk 0:00:19]} 45. Ng8+ {[%clk 0:00:47.1]} 45... Kd7 {[%clk
0:00:17.9]} 46. Qf5+ {[%clk 0:00:47.3]} 46... Kd8 {[%clk 0:00:17.6]} 47. Qf8+
{[%clk 0:00:47.3]} 47... Kd7 {[%clk 0:00:17.2]} 48. Nf6# {[%clk 0:00:48]} 1-0

[Event "Early-Titled-Tuesday-Blitz-March-05-2024"]
[Site "Chess.com"]
[Date "2024.03.05"]
[Round "7"]
[White "Eloist"]
[Black "kyuotbi"]
[Result "0-1"]
[WhiteElo "2430"]
[BlackElo "2318"]
[TimeControl "180+1"]
[EndTime "9:19:16 PST"]
[Termination "kyuotbi won on time"]

1. e4 {[%clk 0:03:00.9]} 1... e5 {[%clk 0:02:57.7]} 2. Bc4 {[%clk 0:02:59.9]}
2... Nf6 {[%clk 0:02:56.4]} 3. d3 {[%clk 0:03:00.2]} 3... Nc6 {[%clk 0:02:49.8]}
4. Nf3 {[%clk 0:03:00.4]} 4... h6 {[%clk 0:02:46.5]} 5. O-O {[%clk 0:02:59.9]}
5... g6 {[%clk 0:02:46.3]} 6. d4 {[%clk 0:02:58.1]} 6... exd4 {[%clk 0:02:38.1]}
7. e5 {[%clk 0:02:58]} 7... Nh5 {[%clk 0:02:16.2]} 8. c3 {[%clk 0:02:50.8]} 8...
dxc3 {[%clk 0:02:11.1]} 9. Nxc3 {[%clk 0:02:49.1]} 9... Bg7 {[%clk 0:02:10.6]}
10. g4 {[%clk 0:02:48.5]} 10... d5 {[%clk 0:02:04.5]} 11. exd6 {[%clk
0:01:54.8]} 11... Bxg4 {[%clk 0:01:56.3]} 12. Qe1+ {[%clk 0:00:50]} 12... Kf8
{[%clk 0:01:51.6]} 13. dxc7 {[%clk 0:00:48.4]} 13... Qxc7 {[%clk 0:01:46.1]} 14.
Nd5 {[%clk 0:00:39.7]} 14... Qd6 {[%clk 0:01:40.9]} 15. Qe4 {[%clk 0:00:37.9]}
15... Bxf3 {[%clk 0:01:36.3]} 16. Qxf3 {[%clk 0:00:37.6]} 16... Ne5 {[%clk
0:01:36]} 17. Qe4 {[%clk 0:00:34]} 17... Nxc4 {[%clk 0:01:17.1]} 18. Qxc4 {[%clk
0:00:33.7]} 18... Kg8 {[%clk 0:01:14.6]} 19. Be3 {[%clk 0:00:31.1]} 19... Kh7
{[%clk 0:01:13.2]} 20. Rad1 {[%clk 0:00:29.6]} 20... Rac8 {[%clk 0:01:10.2]} 21.
Qg4 {[%clk 0:00:27.9]} 21... Rhe8 {[%clk 0:00:46.5]} 22. Nf4 {[%clk 0:00:26.9]}
22... Qb4 {[%clk 0:00:41.6]} 23. a3 {[%clk 0:00:25.6]} 23... Qe4 {[%clk
0:00:38.8]} 24. Rd7 {[%clk 0:00:19.2]} 24... Nf6 {[%clk 0:00:36.2]} 25. Qh3
{[%clk 0:00:13.3]} 25... Nxd7 {[%clk 0:00:35.7]} 26. Qxd7 {[%clk 0:00:13.8]}
26... Qe7 {[%clk 0:00:35.4]} 27. Qd2 {[%clk 0:00:11]} 27... Rcd8 {[%clk
0:00:31.2]} 28. Nd5 {[%clk 0:00:10.9]} 28... Qe4 {[%clk 0:00:27.7]} 29. Rd1
{[%clk 0:00:11]} 29... Re5 {[%clk 0:00:22.8]} 0-1

[Event "Early-Titled-Tuesday-Blitz-March-05-2024"]
[Site "Chess.com"]
[Date "2024.03.05"]
[Round "7"]
[White "kids2010"]
[Black "BogdanDeac"]
[Result "0-1"]
[WhiteElo "2774"]
[BlackElo "2993"]
[TimeControl "180+1"]
[EndTime "9:19:25 PST"]
[Termination "BogdanDeac won by resignation"]

1. e4 {[%clk 0:02:58.7]} 1... c5 {[%clk 0:02:59.4]} 2. c3 {[%clk 0:02:58.1]}
2... Qa5 {[%clk 0:02:57.8]} 3. g3 {[%clk 0:02:55.4]} 3... g6 {[%clk 0:02:45.8]}
4. Bg2 {[%clk 0:02:55.7]} 4... Bg7 {[%clk 0:02:46.1]} 5. Ne2 {[%clk 0:02:54.3]}
5... d6 {[%clk 0:02:46.3]} 6. O-O {[%clk 0:02:54.2]} 6... Nf6 {[%clk 0:02:46.3]}
7. d4 {[%clk 0:02:54.1]} 7... Nc6 {[%clk 0:02:45.7]} 8. h3 {[%clk 0:02:49.8]}
8... O-O {[%clk 0:02:44.7]} 9. Be3 {[%clk 0:02:45.6]} 9... Nd7 {[%clk
0:01:41.2]} 10. Nd2 {[%clk 0:02:40.8]} 10... Qc7 {[%clk 0:01:40.8]} 11. d5
{[%clk 0:02:38.6]} 11... Na5 {[%clk 0:01:33.2]} 12. Rc1 {[%clk 0:02:26]} 12...
b5 {[%clk 0:01:32.1]} 13. b4 {[%clk 0:02:19.5]} 13... Nc4 {[%clk 0:01:32]} 14.
Nxc4 {[%clk 0:02:15.8]} 14... bxc4 {[%clk 0:01:32.9]} 15. f4 {[%clk 0:02:05.3]}
15... Rb8 {[%clk 0:01:29.6]} 16. Qd2 {[%clk 0:01:33.3]} 16... a5 {[%clk
0:01:27.7]} 17. bxa5 {[%clk 0:01:31.5]} 17... Qxa5 {[%clk 0:01:27]} 18. g4
{[%clk 0:01:26.3]} 18... Qa3 {[%clk 0:01:21.4]} 19. Rc2 {[%clk 0:01:19.4]} 19...
Rb6 {[%clk 0:00:43.9]} 20. Ng3 {[%clk 0:01:07.9]} 20... Ba6 {[%clk 0:00:42.2]}
21. Rf2 {[%clk 0:00:50.3]} 21... Rfb8 {[%clk 0:00:39.1]} 22. Kh2 {[%clk
0:00:48.9]} 22... Bb5 {[%clk 0:00:35.9]} 23. e5 {[%clk 0:00:46.9]} 23... Ba4
{[%clk 0:00:26.5]} 24. Rc1 {[%clk 0:00:35.1]} 24... dxe5 {[%clk 0:00:23.5]} 25.
f5 {[%clk 0:00:35.1]} 25... Rb2 {[%clk 0:00:23.5]} 26. Qe1 {[%clk 0:00:35.2]}
26... Rxf2 {[%clk 0:00:20.7]} 27. Bxf2 {[%clk 0:00:33.6]} 27... Rb2 {[%clk
0:00:20.8]} 28. Ne4 {[%clk 0:00:23.5]} 28... Bc2 {[%clk 0:00:20.5]} 29. Nd2
{[%clk 0:00:14.4]} 29... Bd3 {[%clk 0:00:19.8]} 30. Qe3 {[%clk 0:00:10.4]} 30...
Rxa2 {[%clk 0:00:13.4]} 31. Bh4 {[%clk 0:00:08.4]} 31... Qxc1 {[%clk 0:00:13]}
32. Bxe7 {[%clk 0:00:08.2]} 32... Qxd2 {[%clk 0:00:13]} 33. Qxd2 {[%clk
0:00:08]} 33... Rxd2 {[%clk 0:00:13.9]} 34. d6 {[%clk 0:00:08.9]} 34... Be4
{[%clk 0:00:14]} 0-1

[Event "Early-Titled-Tuesday-Blitz-March-05-2024"]
[Site "Chess.com"]
[Date "2024.03.05"]
[Round "7"]
[White "PavelShkapenko"]
[Black "Bauman_Guy"]
[Result "0-1"]
[WhiteElo "2755"]
[BlackElo "2924"]
[TimeControl "180+1"]
[EndTime "9:19:26 PST"]
[Termination "Bauman_Guy won by resignation"]

1. e4 {[%clk 0:02:53.7]} 1... c5 {[%clk 0:02:59.2]} 2. Nc3 {[%clk 0:02:50.7]}
2... d6 {[%clk 0:02:58.9]} 3. g3 {[%clk 0:02:50.9]} 3... g6 {[%clk 0:02:58.7]}
4. Bg2 {[%clk 0:02:51.3]} 4... Bg7 {[%clk 0:02:59.4]} 5. d3 {[%clk 0:02:49]}
5... Nc6 {[%clk 0:02:59.8]} 6. Be3 {[%clk 0:02:43.7]} 6... Rb8 {[%clk
0:02:59.7]} 7. Qd2 {[%clk 0:02:42.3]} 7... b5 {[%clk 0:02:59.8]} 8. Nge2 {[%clk
0:02:42.1]} 8... b4 {[%clk 0:02:59.7]} 9. Nd1 {[%clk 0:02:42.7]} 9... a5 {[%clk
0:02:59.7]} 10. O-O {[%clk 0:02:41.3]} 10... Nd4 {[%clk 0:02:57.9]} 11. Nc1
{[%clk 0:02:38.1]} 11... h5 {[%clk 0:02:55.3]} 12. h3 {[%clk 0:02:37.7]} 12...
Nf6 {[%clk 0:02:37.1]} 13. c3 {[%clk 0:02:36.4]} 13... Nc6 {[%clk 0:02:37]} 14.
Ne2 {[%clk 0:02:35.6]} 14... h4 {[%clk 0:02:20.6]} 15. g4 {[%clk 0:01:52.6]}
15... Nxg4 {[%clk 0:02:19.8]} 16. hxg4 {[%clk 0:01:53.5]} 16... h3 {[%clk
0:02:20.7]} 17. Bh1 {[%clk 0:01:53.1]} 17... h2+ {[%clk 0:02:21.1]} 18. Kg2
{[%clk 0:01:53.7]} 18... Bxg4 {[%clk 0:02:21.8]} 19. f3 {[%clk 0:01:48.9]} 19...
Bh3+ {[%clk 0:02:19.2]} 20. Kf2 {[%clk 0:01:49.4]} 20... e6 {[%clk 0:02:15.6]}
21. Ke1 {[%clk 0:01:49.4]} 21... Bxf1 {[%clk 0:02:08.1]} 22. Kxf1 {[%clk
0:01:50.3]} 22... Qh4 {[%clk 0:02:04.9]} 23. Nf2 {[%clk 0:01:49.8]} 23... a4
{[%clk 0:01:57.3]} 24. a3 {[%clk 0:01:44.4]} 24... bxc3 {[%clk 0:01:55.7]} 25.
bxc3 {[%clk 0:01:45.3]} 25... Na5 {[%clk 0:01:52.9]} 26. Qc2 {[%clk 0:01:38.3]}
26... Nb3 {[%clk 0:01:51]} 27. Rb1 {[%clk 0:01:37.4]} 27... Bh6 {[%clk
0:01:48.6]} 28. Bxh6 {[%clk 0:01:34.1]} 28... Qxh6 {[%clk 0:01:48.3]} 29. Ke1
{[%clk 0:01:24]} 29... Qe3 {[%clk 0:01:43.1]} 30. d4 {[%clk 0:01:07.2]} 30... c4
{[%clk 0:01:25.5]} 31. Rd1 {[%clk 0:01:00.9]} 31... Ke7 {[%clk 0:01:20.8]} 32.
Kf1 {[%clk 0:01:01]} 32... Qg5 {[%clk 0:01:09.9]} 33. f4 {[%clk 0:00:30.7]}
33... Qh4 {[%clk 0:01:04.8]} 34. f5 {[%clk 0:00:31]} 34... gxf5 {[%clk
0:01:02.8]} 35. exf5 {[%clk 0:00:31]} 35... Rhg8 {[%clk 0:01:03.4]} 36. Qe4
{[%clk 0:00:27.7]} 36... Qxe4 {[%clk 0:00:55.1]} 37. Nxe4 {[%clk 0:00:28]} 37...
d5 {[%clk 0:00:55.6]} 38. f6+ {[%clk 0:00:20.5]} 38... Kd7 {[%clk 0:00:52.8]}
39. Nc5+ {[%clk 0:00:19.9]} 39... Nxc5 {[%clk 0:00:51.8]} 40. dxc5 {[%clk
0:00:20.8]} 40... Rb3 {[%clk 0:00:50.3]} 41. Kf2 {[%clk 0:00:20.1]} 41... Rxa3
{[%clk 0:00:50]} 42. Ke3 {[%clk 0:00:14.3]} 42... Kc6 {[%clk 0:00:44.9]} 43. Rb1
{[%clk 0:00:13.6]} 43... Kxc5 {[%clk 0:00:43]} 44. Rb7 {[%clk 0:00:07.7]} 44...
Ra1 {[%clk 0:00:39.3]} 0-1

[Event "Early-Titled-Tuesday-Blitz-March-05-2024"]
[Site "Chess.com"]
[Date "2024.03.05"]
[Round "7"]
[White "ChristianArca"]
[Black "Sharafiev_Azat"]
[Result "1-0"]
[WhiteElo "2704"]
[BlackElo "2477"]
[TimeControl "180+1"]
[EndTime "9:19:29 PST"]
[Termination "ChristianArca won by checkmate"]

1. d4 {[%clk 0:02:55.9]} 1... Nf6 {[%clk 0:02:59.8]} 2. Bf4 {[%clk 0:02:56.1]}
2... d5 {[%clk 0:02:57.7]} 3. e3 {[%clk 0:02:56.5]} 3... c5 {[%clk 0:02:57]} 4.
dxc5 {[%clk 0:02:57.4]} 4... e6 {[%clk 0:02:55.6]} 5. Nf3 {[%clk 0:02:56.5]}
5... Bxc5 {[%clk 0:02:55.7]} 6. Bd3 {[%clk 0:02:57.2]} 6... O-O {[%clk
0:02:53.2]} 7. Nbd2 {[%clk 0:02:57.4]} 7... b6 {[%clk 0:02:51.9]} 8. e4 {[%clk
0:02:54.5]} 8... Ba6 {[%clk 0:02:40.4]} 9. e5 {[%clk 0:02:40.1]} 9... Bxd3
{[%clk 0:02:40.8]} 10. exf6 {[%clk 0:02:39.4]} 10... Bg6 {[%clk 0:02:37.6]} 11.
fxg7 {[%clk 0:02:39.2]} 11... Re8 {[%clk 0:02:36.9]} 12. O-O {[%clk 0:02:25.3]}
12... Nc6 {[%clk 0:02:35.1]} 13. Ne5 {[%clk 0:02:25.2]} 13... Nxe5 {[%clk
0:02:33]} 14. Bxe5 {[%clk 0:02:26.1]} 14... f6 {[%clk 0:02:32.3]} 15. Bg3 {[%clk
0:02:26]} 15... e5 {[%clk 0:02:29.2]} 16. a3 {[%clk 0:02:22.1]} 16... b5 {[%clk
0:02:23.3]} 17. Qe2 {[%clk 0:02:19]} 17... a6 {[%clk 0:02:22.7]} 18. a4 {[%clk
0:02:10.2]} 18... Qd7 {[%clk 0:02:14.5]} 19. axb5 {[%clk 0:02:08.5]} 19... Qxb5
{[%clk 0:02:13.7]} 20. Qf3 {[%clk 0:02:04.3]} 20... Kxg7 {[%clk 0:02:05.2]} 21.
Nb3 {[%clk 0:02:00.1]} 21... Bb6 {[%clk 0:02:01.7]} 22. Rfd1 {[%clk 0:01:11.5]}
22... Bxc2 {[%clk 0:01:40.7]} 23. Rxd5 {[%clk 0:01:10.2]} 23... Qxb3 {[%clk
0:01:41.2]} 24. Rd7+ {[%clk 0:01:09.1]} 24... Kh6 {[%clk 0:01:25.4]} 25. Qxf6+
{[%clk 0:01:08.5]} 25... Bg6 {[%clk 0:01:20.8]} 26. h4 {[%clk 0:00:56.8]} 26...
Qxg3 {[%clk 0:01:16.6]} 27. Qxb6 {[%clk 0:00:47.3]} 27... Qxh4 {[%clk
0:01:14.5]} 28. Ra3 {[%clk 0:00:44.2]} 28... Rab8 {[%clk 0:00:56.7]} 29. Qd6
{[%clk 0:00:43.6]} 29... Qf4 {[%clk 0:00:42.4]} 30. Rh3+ {[%clk 0:00:37.9]}
30... Kg5 {[%clk 0:00:43]} 31. Rg3+ {[%clk 0:00:38.5]} 31... Kh5 {[%clk
0:00:39]} 32. Rg7 {[%clk 0:00:19.6]} 32... Qc1+ {[%clk 0:00:23.4]} 33. Kh2
{[%clk 0:00:18.7]} 33... Qf4 {[%clk 0:00:24.1]} 34. Rxg6 {[%clk 0:00:18.1]}
34... Rxb2 {[%clk 0:00:12.8]} 35. Rh6+ {[%clk 0:00:18.2]} 35... Qxh6 {[%clk
0:00:11.9]} 36. Rh3+ {[%clk 0:00:19.1]} 36... Kg4 {[%clk 0:00:12.4]} 37. Qxh6
{[%clk 0:00:20]} 37... e4 {[%clk 0:00:12.8]} 38. Qh5+ {[%clk 0:00:20.1]} 38...
Kf4 {[%clk 0:00:13.2]} 39. g3# {[%clk 0:00:20.4]} 1-0

[Event "Early-Titled-Tuesday-Blitz-March-05-2024"]
[Site "Chess.com"]
[Date "2024.03.05"]
[Round "7"]
[White "AjedrezenMadrid"]
[Black "NowInChess"]
[Result "1-0"]
[WhiteElo "2532"]
[BlackElo "2245"]
[TimeControl "180+1"]
[EndTime "9:19:35 PST"]
[Termination "AjedrezenMadrid won by resignation"]

1. b3 {[%clk 0:02:55.4]} 1... d6 {[%clk 0:02:59.5]} 2. Bb2 {[%clk 0:02:53.5]}
2... Nd7 {[%clk 0:03:00]} 3. d4 {[%clk 0:02:50.3]} 3... Ngf6 {[%clk 0:03:00.1]}
4. g3 {[%clk 0:02:47.7]} 4... g6 {[%clk 0:03:00.2]} 5. Nf3 {[%clk 0:02:47.3]}
5... Bg7 {[%clk 0:03:00.5]} 6. Bg2 {[%clk 0:02:46.7]} 6... O-O {[%clk
0:03:00.7]} 7. O-O {[%clk 0:02:46.9]} 7... Re8 {[%clk 0:02:57.1]} 8. Nbd2 {[%clk
0:02:46.1]} 8... e5 {[%clk 0:02:56.4]} 9. dxe5 {[%clk 0:02:45.3]} 9... Ng4
{[%clk 0:02:56.7]} 10. Qc1 {[%clk 0:02:44.2]} 10... dxe5 {[%clk 0:02:46.6]} 11.
h3 {[%clk 0:02:43.5]} 11... Ngf6 {[%clk 0:02:46.5]} 12. e4 {[%clk 0:02:36.6]}
12... c6 {[%clk 0:02:36.7]} 13. Re1 {[%clk 0:02:34.2]} 13... Qc7 {[%clk
0:02:36.2]} 14. a4 {[%clk 0:02:32.9]} 14... a5 {[%clk 0:02:35.9]} 15. Nc4 {[%clk
0:02:33]} 15... Nh5 {[%clk 0:02:20.1]} 16. Qd2 {[%clk 0:02:31.1]} 16... Nb6
{[%clk 0:02:04.9]} 17. Qd6 {[%clk 0:02:26.8]} 17... Qxd6 {[%clk 0:02:02.2]} 18.
Nxd6 {[%clk 0:02:24]} 18... Re7 {[%clk 0:01:57.9]} 19. Rad1 {[%clk 0:02:13.3]}
19... Be6 {[%clk 0:01:44.5]} 20. Ng5 {[%clk 0:02:09.1]} 20... Rb8 {[%clk
0:01:25.2]} 21. Nxe6 {[%clk 0:01:59.2]} 21... Rxe6 {[%clk 0:01:23.5]} 22. c4
{[%clk 0:01:47.9]} 22... Bf8 {[%clk 0:01:03.7]} 23. c5 {[%clk 0:01:43.9]} 23...
Nd7 {[%clk 0:00:54.1]} 24. Nxf7 {[%clk 0:01:38.3]} 24... Nxc5 {[%clk 0:00:48.2]}
25. Nxe5 {[%clk 0:01:19.8]} 25... Nxb3 {[%clk 0:00:32.6]} 26. Nd7 {[%clk
0:01:18.1]} 26... Rbe8 {[%clk 0:00:31.6]} 27. g4 {[%clk 0:01:16.7]} 27... Nf4
{[%clk 0:00:19.7]} 28. Nf6+ {[%clk 0:01:16.2]} 28... Kf7 {[%clk 0:00:08.5]} 29.
Nxe8 {[%clk 0:01:08.8]} 29... Kxe8 {[%clk 0:00:09.4]} 30. Bf1 {[%clk 0:01:06]}
30... Bb4 {[%clk 0:00:03.7]} 31. Bc4 {[%clk 0:01:04.7]} 31... Bxe1 {[%clk
0:00:03.7]} 32. Bxe6 {[%clk 0:00:56.1]} 32... Bxf2+ {[%clk 0:00:03.9]} 33. Kxf2
{[%clk 0:00:54.3]} 33... Nxe6 {[%clk 0:00:04.8]} 34. Ke3 {[%clk 0:00:52.1]}
34... b5 {[%clk 0:00:04.3]} 35. Rd6 {[%clk 0:00:50.3]} 35... Nbc5 {[%clk
0:00:04]} 36. Rxc6 {[%clk 0:00:48.8]} 36... bxa4 {[%clk 0:00:03.4]} 37. Ba3
{[%clk 0:00:47.9]} 37... Kd7 {[%clk 0:00:01.5]} 38. Rxc5 {[%clk 0:00:47.3]}
38... Nxc5 {[%clk 0:00:01.9]} 39. Bxc5 {[%clk 0:00:48.2]} 39... Kc6 {[%clk
0:00:02.6]} 40. Kd4 {[%clk 0:00:48.1]} 40... a3 {[%clk 0:00:01.5]} 41. Bxa3
{[%clk 0:00:48]} 41... Kb5 {[%clk 0:00:02.4]} 42. Kd5 {[%clk 0:00:47.4]} 42...
Ka4 {[%clk 0:00:03.3]} 43. Bc5 {[%clk 0:00:47.4]} 43... Kb3 {[%clk 0:00:04]} 44.
e5 {[%clk 0:00:47.8]} 44... a4 {[%clk 0:00:04.9]} 45. e6 {[%clk 0:00:48.1]}
45... a3 {[%clk 0:00:05.8]} 46. e7 {[%clk 0:00:48.2]} 46... a2 {[%clk
0:00:06.7]} 47. Bd4 {[%clk 0:00:45.2]} 47... a1=Q {[%clk 0:00:07.6]} 48. Bxa1
{[%clk 0:00:45]} 1-0

[Event "Early-Titled-Tuesday-Blitz-March-05-2024"]
[Site "Chess.com"]
[Date "2024.03.05"]
[Round "7"]
[White "manitodeplomo"]
[Black "Statham_01"]
[Result "0-1"]
[WhiteElo "2702"]
[BlackElo "2553"]
[TimeControl "180+1"]
[EndTime "9:19:39 PST"]
[Termination "Statham_01 won on time"]

1. d4 {[%clk 0:02:58.1]} 1... Nf6 {[%clk 0:02:58.2]} 2. c4 {[%clk 0:02:58.2]}
2... e5 {[%clk 0:02:55.4]} 3. dxe5 {[%clk 0:02:57.3]} 3... Ng4 {[%clk
0:02:55.9]} 4. e3 {[%clk 0:02:57.2]} 4... Nxe5 {[%clk 0:02:55.5]} 5. Nc3 {[%clk
0:02:54.6]} 5... Bb4 {[%clk 0:02:55.3]} 6. Ne2 {[%clk 0:02:52.1]} 6... Nbc6
{[%clk 0:02:52.1]} 7. a3 {[%clk 0:02:49.5]} 7... Be7 {[%clk 0:02:50.9]} 8. Nf4
{[%clk 0:02:45.6]} 8... O-O {[%clk 0:02:49]} 9. Be2 {[%clk 0:02:45.8]} 9... a5
{[%clk 0:02:49.3]} 10. O-O {[%clk 0:02:45.4]} 10... d6 {[%clk 0:02:46.3]} 11. b3
{[%clk 0:02:44.6]} 11... Ng6 {[%clk 0:02:30]} 12. Nh5 {[%clk 0:02:41.7]} 12...
Be6 {[%clk 0:02:17.7]} 13. Bb2 {[%clk 0:02:40.2]} 13... f6 {[%clk 0:02:15.4]}
14. Qc2 {[%clk 0:02:37]} 14... Bf7 {[%clk 0:02:14.4]} 15. Rad1 {[%clk
0:02:36.6]} 15... Qc8 {[%clk 0:02:11.9]} 16. Nd5 {[%clk 0:02:32.9]} 16... Re8
{[%clk 0:01:53.8]} 17. Qc3 {[%clk 0:02:24.9]} 17... Qf5 {[%clk 0:01:43.9]} 18.
h3 {[%clk 0:02:07.3]} 18... Bd8 {[%clk 0:01:30.1]} 19. Ng3 {[%clk 0:01:41]}
19... Qg5 {[%clk 0:01:22.9]} 20. Qc2 {[%clk 0:01:33.3]} 20... Nh4 {[%clk
0:01:15.5]} 21. Kh2 {[%clk 0:01:32.1]} 21... Bg6 {[%clk 0:01:10.1]} 22. Qc1
{[%clk 0:01:25.6]} 22... Ne7 {[%clk 0:00:57.7]} 23. Nf4 {[%clk 0:01:09.4]} 23...
Nef5 {[%clk 0:00:49.1]} 24. Nxg6 {[%clk 0:00:58.2]} 24... hxg6 {[%clk 0:00:46]}
25. Bf3 {[%clk 0:00:28.7]} 25... c6 {[%clk 0:00:40.1]} 26. Ne4 {[%clk
0:00:18.1]} 26... Nxf3+ {[%clk 0:00:36.6]} 27. gxf3 {[%clk 0:00:19]} 27... Qh5
{[%clk 0:00:36.3]} 28. Nxd6 {[%clk 0:00:05.6]} 28... Nxd6 {[%clk 0:00:33.9]} 29.
Rxd6 {[%clk 0:00:06.5]} 29... Bc7 {[%clk 0:00:34.1]} 30. c5 {[%clk 0:00:07.1]}
30... Qxf3 {[%clk 0:00:21.1]} 31. Qc4+ {[%clk 0:00:07]} 31... Kf8 {[%clk
0:00:17.4]} 32. Qh4 {[%clk 0:00:02.7]} 32... Rad8 {[%clk 0:00:13.5]} 0-1